Cogmind - Beta 16.1 @@@ ROGUE MODE // 2026.03.11 @ 13:04:57 Player: Ragnakor Result: Destroyed by G-47 Trooper with Particle Gun Performance ------------- Evolutions (2) 1000 Regions Visited (4) 800 Robots Destroyed (65) 325 Value Destroyed (1219) 1219 Prototype IDs (3) 60 Alien Tech Used (0) 0 Bonus (252) 252 TOTAL SCORE: 3656 Bonus ------- High Alert Combat Kills 52 Entered Garrisons 200 Cogmind --------- Core Integrity 0/550 Matter 223/300 Energy 160/160 System Corruption 1% Temperature Cool (9) Movement Walking (120) Location -8/Garrison Parts ------- > --- POWER (1) -------- Light Nuclear Core > --- PROPULSION (4) --- Aluminum Leg > --- UTILITY (4) ------ Advanced Visual Processing Unit Improved Signal Interpreter > --- WEAPON (2) ------- (None) > --- INVENTORY (5) ---- (None) Peak State ------------ > --- POWER ------------ Improved Deuterium Engine > --- PROPULSION ------- Flight Unit Flight Unit Cesium-ion Thruster Improved VTOL Module > --- UTILITY ---------- Advanced Visual Processing Unit Improved Signal Interpreter Hacking Suite System Shield > --- WEAPON ----------- Advanced Beam Rifle Improved Datajack > --- INVENTORY -------- Light Deuterium Engine Improved Deuterium Engine Improved Deuterium Engine Hardlight Generator Advanced Beam Cannon [Rating: 33] Favorites ----------- Power Light Nuclear Core Engine Light Ion Engine Power Core Light Nuclear Core Propulsion Aluminum Leg Treads Light Treads Leg Aluminum Leg Wheel Wheel Flight Unit Flight Unit Utility Small Storage Unit Device Improved Heat Sink Storage Small Storage Unit Processor Improved Signal Interpreter Hackware Hacking Suite Weapon EM Pulse Gun Energy Gun EM Pulse Gun Energy Cannon Advanced Beam Cannon Ballistic Gun Heavy Assault Rifle Ballistic Cannon Improved Light Cannon Launcher Mini Grenade Launcher Slashing Weapon Scythe Special Melee Weapon Datajack Build | -11 -10 -9 -8 -8 ------- Run | Yrd Mat Mat Mat Gar Slots Evolved 4 | . . 2 2 . Power . | . . . . . Propulsion 2 | . . 2 . . Utility 2 | . . . 2 . Weapon . | . . . . . Parts Attached 60 | 6 5 12 27 10 Power 10 | 1 1 1 4 3 Engine 8 | 1 . 1 4 2 Core 2 | . 1 . . 1 Reactor . | . . . . . Propulsion 22 | 2 . 6 11 3 Treads 5 | . . 4 1 . Leg 4 | 2 . 1 . 1 Wheel 1 | . . 1 . . Hover . | . . . . . Flight 12 | . . . 10 2 Utility 14 | 1 3 . 8 2 Device 7 | . 1 . 4 2 Storage 2 | 1 1 . . . Processor 3 | . . . 3 . Hackware 2 | . 1 . 1 . Protection . | . . . . . Artifact . | . . . . . Weapon 14 | 2 1 5 4 2 Energy Gun 6 | 2 . . 3 1 Energy Cannon 2 | . . 2 . . Ballistic Gun 1 | . . 1 . . Ballistic Cannon 1 | . . 1 . . Launcher 1 | . . 1 . . Special Weapon . | . . . . . Impact Weapon . | . . . . . Slashing Weapon 1 | . . . . 1 Piercing Weapon . | . . . . . Special Melee Weapon 2 | . 1 . 1 . Unidentified Prototypes 3 | . . 1 2 . Corrupted Parts 2 | . 2 . . . System Corruption 4 | . 4 . . . Parts Lost 30 | . 1 5 7 17 Power 5 | . . 1 1 3 Propulsion 14 | . . 3 4 7 Utility 4 | . . . . 4 Weapon 7 | . 1 1 2 3 Highest Loss Streak 13 | . 1 3 6 13 To Critical Strikes . | . . . . . Average Backups 6 | 2 6 7 7 2 Power 2 | 1 2 2 1 1 Propulsion 1 | . 1 . 2 . Utility 1 | . 1 2 1 . Weapon 1 | 1 1 1 1 . Tool/Special . | . . . . . Unused Backups 7 | . 1 2 3 1 Power 2 | . . . 2 . Propulsion . | . . . . . Utility 2 | . . . 1 1 Weapon 3 | . 1 2 . . Tool/Special . | . . . . . Average Slot Usage (%) 91 | . 93 85 98 84 Engine 6 | . 5 3 8 8 Core 4 | . 8 5 . . Treads 8 | . . 15 12 . Leg 12 | . 28 15 . . Flight 10 | . . . 23 28 Device 4 | . 3 . 9 3 Storage 9 | . 14 11 8 . Processor 4 | . . . 8 18 Hackware 8 | . 4 11 9 9 Energy Gun 9 | . 23 4 3 7 Energy Cannon 3 | . . 5 3 . Ballistic Cannon 1 | . . 1 2 . Launcher 1 | . . 3 3 . Special Melee Weapon 4 | . 4 5 4 . Peak Build Rating 33 | 6 12 15 33 33 Average Rating 15 | 5 9 13 22 26 On Entrance 12 | . 6 11 15 30 Avg Prop Armor Cover (%) 4 | . . 5 4 . Naked Turns . | . . . . . Heaviest Build 20 | 12 15 18 20 16 Greatest Support 80 | 20 20 80 80 20 Greatest Overweight (x) 4 | 1 . 1 4 2 Average Overweight (x) . | . . . . . Largest Inventory Capacity 10 | 8 10 8 8 5 Average Capacity 7 | 7 8 8 7 5 Most Carried 8 | 5 8 8 8 5 Average Carried 6 | 2 6 7 7 2 Final Capacity 8 | 8 8 8 5 5 Final Carried 8 | 5 7 8 5 . Class Distribution -------------------- 49% | Mutant 35% | Scavenger-Mutant 11% | Scavenger-Sprinter 3% | Hacker-Sprinter Dominant Class ---------------- Mutant | -10/Materials Scavenger-Mutant | -9/Materials Scavenger-Mutant | -8/Materials Scavenger-Sprinter | -8/Garrison Resources | -11 -10 -9 -8 -8 ----------- Run | Yrd Mat Mat Mat Gar Matter Collected 1054 | 260 30 158 388 218 Remotely . | . . . . . Salvage Created 1985 | 222 398 447 649 269 Parts 137 | 17 19 41 50 10 Haulers Intercepted 6 | . . 2 4 . Recyclers Shooed 1 | . . 1 . . Parts Field Recycled . | . . . . . Retrieved Matter . | . . . . . Parts Self-Destructed . | . . . . . Prevented . | . . . . . Parts Restored . | . . . . . Kills | -11 -10 -9 -8 -8 ------- Run | Yrd Mat Mat Mat Gar Combat Hostiles Destroyed 38 | . 4 13 14 7 Melee 5 | . . . . 5 Guns 7 | . 3 2 . 2 Cannons 9 | . . 4 5 . AOE 16 | . . 7 9 . Classes Destroyed 10 | 3 2 4 1 . Worker 3 | 2 1 . . . Builder 3 | . . 3 . . Tunneler 6 | 5 1 . . . Hauler 6 | . . 2 4 . Recycler 5 | 1 2 . 2 . Operator 1 | . 1 . . . Watcher 3 | . . . 3 . Swarmer 21 | . . 7 11 3 Grunt 10 | . 4 1 1 4 Sentry 7 | . . 5 2 . Best Kill Streak 6 | 5 6 6 6 4 Combat Bots Only 5 | . 2 5 4 4 Max Kills in Single Turn 3 | 1 1 3 3 1 Gunslinging . | . . . . . Exploded 3 | . . 1 3 . Melee 1 | . . . . 1 Uniques/NPCs Destroyed . | . . . . . Combat | -11 -10 -9 -8 -8 -------- Run | Yrd Mat Mat Mat Gar Hostile Shots Fired 288 | . 15 83 63 127 Missed 108 | . 8 24 31 45 Hits 180 | . 7 59 32 82 Projectile 180 | . 7 59 32 82 Critical Strikes 13 | . . 2 3 8 Damage Taken 2726 | . 103 877 538 1208 Core 795 | . 10 226 146 413 Absorbed by Shields 31 | . . . . 31 Regen/Repaired (Parts) 44 | . . 44 . . Core Remaining (%) 79 | 100 96 43 . . Volleys Fired 165 | 15 31 54 49 16 Largest 2 | 2 2 2 2 1 Hottest 101 | 80 80 101 101 65 Shots Fired 234 | 30 55 73 60 16 Gun 151 | 30 55 32 18 16 Cannon 60 | . . 29 31 . Launcher 23 | . . 12 11 . Special . | . . . . . Kinetic 19 | . . 9 10 . Thermal 79 | . . 24 39 16 Explosive 23 | . . 12 11 . Electromagnetic 113 | 30 55 28 . . Robot Hit Streak 9 | 4 9 9 6 3 Robot Miss Streak 6 | 3 5 5 6 2 Penetration Max . | . . . . . Secondary Targets . | . . . . . Shots Hit Robots 151 | 16 36 38 41 20 Core Hits 84 | 9 14 23 27 11 Critical Kills . | . . . . . Critical Parts Destroyed . | . . . . . Critical Strikes 3 | . . . 1 2 Burn 1 | . . . 1 . Sever 2 | . . . . 2 Melee Attacks 33 | . 4 4 11 14 Impact . | . . . . . Slashing 14 | . . . . 14 Piercing . | . . . . . Sneak Attacks 18 | . 3 4 11 . Combat Hostiles . | . . . . . Follow-up Attacks . | . . . . . Damage Inflicted 3593 | 246 518 1116 1194 519 Guns 1342 | 200 475 277 207 183 Cannons 515 | . . 188 327 . Explosions 1400 | 46 43 651 660 . Melee 329 | . . . . 329 Ramming 7 | . . . . 7 Kinetic 175 | . . 93 82 . Thermal 891 | 46 43 167 452 183 Explosive 1266 | . . 606 660 . Electromagnetic 925 | 200 475 250 . . Impact . | . . . . . Slashing 329 | . . . . 329 Piercing . | . . . . . Highest Corruption 4 | . 4 . 1 1 Average Corruption 2 | . 3 . 1 1 Corruption Purged . | . . . . . Corruption Blocked . | . . . . . Effects 10 | . 6 . 2 2 Message Errors 3 | . 2 . . 1 Matter Fused 2 | . . . 2 . Energy Discharges 3 | . 3 . . . Parts Rejected 1 | . 1 . . . Alerts 1 | . . . . 1 Overload Shots . | . . . . . Overflow Damage 66 | 33 9 7 17 . Projectiles . | . . . . . Explosions 66 | 33 9 7 17 . Melee . | . . . . . Knockbacks 2 | . . . 2 . Impact . | . . . . . Kinetic 2 | . . . 2 . Secondary . | . . . . . Self-Inflicted Damage 336 | . 13 197 126 . Shots 12 | . 1 6 5 . Rammed . | . . . . . Targets Rammed 3 | . . . . 3 Kicked 3 | . . . . 3 Crushed . | . . . . . Highest Temperature 165 | 36 108 165 116 70 Average Temperature 32 | 15 46 40 28 19 Received Heat Transfer 1236 | . 51 225 198 762 Siege Activations . | . . . . . Martial Activations . | . . . . . Shielding Activations . | . . . . . Robots Disrupted 1 | . 1 . . . Combat Hostiles 1 | . 1 . . . Robots Corrupted 2 | . 1 1 . . Combat Hostiles 1 | . 1 . . . Parts Fried 4 | 1 1 2 . . Impact Corruptions . | . . . . . Robots Melted . | . . . . . Combat Hostiles . | . . . . . Parts Melted 1 | . . . 1 . Heat Transferred 1754 | 50 100 272 962 370 Parts Sabotaged . | . . . . . Parts Stolen . | . . . . . Parts Stripped . | . . . . . Power Chain Reactions 3 | 1 1 1 . . Alert | -11 -10 -9 -8 -8 ------- Run | Yrd Mat Mat Mat Gar Maximum Alert Level 2 | . . 1 2 2 Low Security (%) 73 | 100 100 75 63 . Level 1 15 | . . 24 16 33 Level 2 11 | . . . 20 66 Level 3 . | . . . . . Level 4 . | . . . . . Level 5 . | . . . . . High Security . | . . . . . Max Security . | . . . . . Peak Influence 558 | 10 80 339 558 511 Initial 356 | . . 11 126 356 Average 152 | 1 30 120 246 435 Influence Increases 1813 | 40 198 524 746 305 Destroy 0b10 Robot/C 760 | . 80 260 280 140 Destroy 0b10 Robot/NC 135 | 40 25 25 45 . Destroy Leader 168 | . 20 84 64 . Successful Hack 63 | . 25 7 31 . Disable Machine 105 | . 15 15 75 . Destroy Structure 177 | . 3 88 86 . Partial Spotted 45 | . . . 45 . Lose Combat Pursuer 360 | . 30 45 120 165 Influence Decreases 1322 | 40 170 253 497 362 Entered New Map 382 | . . 17 173 192 Time Decay 660 | 40 160 206 254 . Lost Part 280 | . 10 30 70 170 Squads Dispatched 4 | . . 2 2 . Investigation 1 | . . . 1 . Extermination . | . . . . . Reinforcement 3 | . . 2 1 . Assault . | . . . . . Garrison . | . . . . . Intercept . | . . . . . Searches Triggered . | . . . . . Construction Impeded . | . . . . . Haulers Reinforced . | . . . . . Active Scanning Responses . | . . . . . Cargo Convoy Interrupts . | . . . . . Stealth | -11 -10 -9 -8 -8 --------- Run | Yrd Mat Mat Mat Gar Distress Signals 3 | . 1 1 1 . Communications Jammed . | . . . . . Distress Signals . | . . . . . Times Spotted 89 | . 9 21 38 21 Peak Tracking Total 13 | . 3 5 11 13 Tactical Retreats 11 | . 2 2 3 4 Traps | -11 -10 -9 -8 -8 ------- Run | Yrd Mat Mat Mat Gar Traps Triggered 2 | . . . 1 1 Indirectly . | . . . . . Trap Hack Attempts . | . . . . . Triggered . | . . . . . Disarmed . | . . . . . Reprogrammed . | . . . . . Reused . | . . . . . Traps Extracted . | . . . . . Installed . | . . . . . Triggered . | . . . . . Machines | -11 -10 -9 -8 -8 ---------- Run | Yrd Mat Mat Mat Gar Machines Disabled 7 | . 1 1 5 . Max in Single Turn 1 | . 1 1 1 . Machines Repaired . | . . . . . Machines Dismantled . | . . . . . Machines Sabotaged . | . . . . . Overloaded Fab Kills . | . . . . . Hacking | -11 -10 -9 -8 -8 --------- Run | Yrd Mat Mat Mat Gar Machines Accessed 20 | . 6 3 9 2 Terminals 14 | . 5 2 5 2 Fabricators . | . . . . . Repair Stations 1 | . . 1 . . Recycling Units 3 | . 1 . 2 . Scanalyzers 1 | . . . 1 . Garrison Access 1 | . . . 1 . Total Hacks 51 | . 13 6 25 7 Successful 28 | . 7 3 17 1 Failed 23 | . 6 3 8 6 Catastrophic 1 | . 1 . . . Database Lockouts . | . . . . . Manual . | . . . . . Terminals 39 | . 12 4 16 7 Fabricators . | . . . . . Repair Stations 2 | . . 2 . . Recycling Units 4 | . 1 . 3 . Scanalyzers 3 | . . . 3 . Garrison Access 3 | . . . 3 . Terminal Hacks 20 | . 7 1 11 1 Branch Access Points 1 | . 1 . . . Emergency Access Points 2 | . . . 2 . Terminal Index 1 | . . . 1 . Repair Station Index 1 | . . 1 . . Scanalyzer Index 1 | . . . 1 . Locate Traps 3 | . 1 . 2 . Dispatch Records 1 | . . . 1 . Reinforcement Status 2 | . 1 . 1 . Hauler Manifests 4 | . 2 . 2 . Registered Components 2 | . 1 . 1 . Registered Prototypes 1 | . 1 . . . Security Stations 1 | . . . . 1 Fabricator Hacks . | . . . . . Repair Station Hacks 2 | . . 2 . . Scan Component 1 | . . 1 . . Repair 1 | . . 1 . . Recycling Unit Hacks 3 | . . . 3 . Report Inventory 2 | . . . 2 . Retrieve Components 1 | . . . 1 . Scanalyzer 1 | . . . 1 . Retrieve Study 1 | . . . 1 . Garrison Access Hacks 2 | . . . 2 . Unlock Access 1 | . . . 1 . Coupler Status 1 | . . . 1 . Unauthorized Hacks . | . . . . . Terminals . | . . . . . Fabricators . | . . . . . Repair Stations . | . . . . . Recycling Units . | . . . . . Scanalyzers . | . . . . . Garrison Access . | . . . . . Data Cores Recovered 1 | . 1 . . . Used . | . . . . . Hacking Detections 14 | . 5 2 5 2 Full Trace Events 2 | . . . 2 . Feedback Events . | . . . . . Feedback Blocked . | . . . . . Robot Schematics Acquired . | . . . . . Robots Built . | . . . . . Authchips . | . . . . . Time . | . . . . . Total Robot Build Rating . | . . . . . Part Schematics Acquired . | . . . . . Parts Built . | . . . . . Authchips . | . . . . . Time . | . . . . . Total Part Build Rating . | . . . . . Part Studies Acquired 1 | . . . 1 . Parts Repaired 1 | . . 1 . . Time 26 | . . 26 . . Parts Recycled . | . . . . . Recycled Matter . | . . . . . Retrieved Matter . | . . . . . Retrieved Components 4 | . . . 4 . Parts Scanalyzed . | . . . . . Part Schematics Acquired . | . . . . . Parts Damaged . | . . . . . Bothacking | -11 -10 -9 -8 -8 ------------ Run | Yrd Mat Mat Mat Gar Used RIF Installer . | . . . . . Robots Hacked 13 | . 3 3 7 . Non-combat 13 | . 3 3 7 . Combat . | . . . . . Robot Hacks Applied 14 | . 3 3 8 . parse_system 4 | . 2 1 1 . no_distress 9 | . 1 1 7 . find_recycling 1 | . . 1 . . Relay Couplers Released . | . . . . . Fabnet Peak Effective % . | . . . . . Robots Rewired . | . . . . . Allies Hacked . | . . . . . Hacks Repelled . | . . . . . Allies | -11 -10 -9 -8 -8 -------- Run | Yrd Mat Mat Mat Gar Total Allies . | . . . . . Largest Group . | . . . . . Highest-Rated Group . | . . . . . Highest-Rated Ally . | . . . . . Total Orders . | . . . . . Ally Attacks . | . . . . . Total Damage . | . . . . . Kills . | . . . . . Allies Corrupted . | . . . . . Allies Melted . | . . . . . Intel | -11 -10 -9 -8 -8 ------- Run | Yrd Mat Mat Mat Gar Active Infowar (turns) 429 | . . . 245 184 Optics 429 | . . . 245 184 Robot Analysis Total . | . . . . . Derelict Logs Recovered . | . . . . . Drone Launches . | . . . . . Drone Recoveries . | . . . . . Exploration | -11 -10 -9 -8 -8 ------------- Run | Yrd Mat Mat Mat Gar Turns Passed 1993 | 171 491 590 557 184 Spaces Moved 1555 | 100 319 266 647 223 Core 20 | 19 . . . 1 Treads 176 | . . 89 87 . Legs 580 | 81 319 177 . 3 Wheels . | . . . . . Hover . | . . . . . Flight 779 | . . . 560 219 Fastest Speed 28 | 50 120 120 28 28 Average Speed 81 | 112 120 135 52 32 Slowest Speed 420 | 120 120 190 420 150 Overloaded Moves . | . . . . . Propulsion Burnouts . | . . . . . Robots Hopped 5 | . . . 5 . Potential Cave-ins 1 | . . 1 . . Cave-ins Triggered . | . . . . . Exploration Rate (%) 37 | 5 48 31 71 32 Regions Visited 4 Branch Regions . Pre-discovered Areas . | . . . . . Known Exits Taken 1 | . . . 1 . Unknown Exits Taken 3 | 1 1 1 . . Scrap Searched . | . . . . . Spaces Dug . | . . . . . Terrain Destroyed 224 | 5 3 122 94 . Melee . | . . . . . Projectile 2 | . . 2 . . AOE 222 | 5 3 120 94 . Terrain Rammed . | . . . . . Walls Destroyed . | . . . . . Machines Disabled . | . . . . . Actions | -11 -10 -9 -8 -8 --------- Run | Yrd Mat Mat Mat Gar Total 2009 | 125 369 417 803 295 Wait 117 | . 4 70 25 18 Move 1542 | 99 318 265 638 222 Hop 4 | . . . 4 . Pick Up 31 | 5 3 6 15 2 Fast Attach 26 | 6 3 5 7 5 Attach 19 | . 2 3 8 6 Detach 3 | . 1 . 2 . Swap 31 | . 1 7 22 1 Drop 29 | . 2 3 22 2 Fire 165 | 15 31 54 49 16 Melee 33 | . 4 4 11 14 Ram . | . . . . . Kick 3 | . . . . 3 Crush . | . . . . . Escape Stasis 6 | . . . . 6 Rewire . | . . . . . Trap . | . . . . . Miscellaneous . | . . . . . Route ------- -11/Scrapyard -10/Materials (discovered 2 exits: *Mat / *Min) -9/Materials -8/Materials (discovered 2 exits: *Fac / Gar) -8/Garrison (discovered 1 exit: *Mat) History --------- Turn | Location | Event 5 | -11/Scrapyard | Discovered new exit (range 15) 172 | -11/Scrapyard | Entered Materials 310 | -10/Materials | Build established: Mutant 527 | -10/Materials | Discovered new exit (range 8) 568 | -10/Materials | Discovered new exit (range 13) 630 | -10/Materials | Identified exit to Mines 663 | -10/Materials | Entered another Materials area 663 | -9/Materials | Evolved 2 slots: Propulsion x2 887 | -9/Materials | Repaired EM Pulse Gun 1002 | -9/Materials | Lost 3 parts (1p1n1w) 1115 | -9/Materials | Core integrity fell below 50% 1175 | -9/Materials | Discovered new exit (range 16) 1253 | -9/Materials | Entered another Materials area 1253 | -8/Materials | Evolved 2 slots: Utility x2 1335 | -8/Materials | Build established: Scavenger-Mutant 1722 | -8/Materials | Discovered new exit (range 6) 1724 | -8/Materials | Identified exit to Factory 1774 | -8/Materials | Lost 6 parts (1p4n1w) 1810 | -8/Materials | Identified exit to Garrison 1810 | -8/Materials | Entered Garrison 1828 | -8/Garrison | Learned Materials security intel 1836 | -8/Garrison | Triggered checkpoint 1869 | -8/Garrison | Triggered checkpoint 1897 | -8/Garrison | Discovered new exit (range 12) 1900 | -8/Garrison | Identified exit to Materials 1901 | -8/Garrison | Attempted to access garrison exit controls, blocked by remote lockdown 1913 | -8/Garrison | Lost 4 parts (1p2n1u) 1953 | -8/Garrison | Core integrity fell below 50% 1985 | -8/Garrison | Core integrity fell below 20% 1994 | -8/Garrison | Destroyed by G-47 Trooper with Particle Gun Last Messages --------------- 01956_ G-47 Trooper destroyed. 01965_ Flight Unit+ destroyed. 01967_ G-47 Trooper Aluminum Leg severed. 01972_ Imp. Deuterium Engine destroyed. 01973_ Particle Gun destroyed. 01973_ Critical hit (Burn: +37). 01975_ G-47 Trooper destroyed. 01977_ G-47 Trooper Aluminum Leg severed. 01978_ Imp. Heat Sink destroyed. 01980_ Acquired 56 matter. 01980_ G-47 Trooper suffers critical hit (Burn). 01980_ Critical hit (Burn: +37). 01980_ Acquired Lgt. Nuclear Core. 01982_ G-47 Trooper destroyed. 01982_ Imp. VTOL Module destroyed. 01984_ Critical hit (Burn: +37). 01986_ Acquired Aluminum Leg. 01988_ Scythe destroyed. 01990_ Kicked G-47 Trooper out of the way. 01991_ Kicked G-47 Trooper. Map ----- +----------------------------------------------------+ | # ## ##?????????????????????????????????????? | | ??????????????????????????????????????? | | ??????????????????????????????????????? | | ??????????????????????????????????????? | | ??????????????????????????????????????? | | # ## #??????????????????????????????????????? | | # ## #??????????????????????????????????????? | | #??????????????????????????????????????? | | #??????????????????????????????????????? | | #??????????????????????????????????????? | | # ## #??????????????????????????????????????? | | # ## #??????????????????????????????????????? | | ####### #??????????????????????????????????????? | | ??????# #??????????????????????????????????????? | | ??????# #??????????????????????????????????????? | | ??????# #??????###?????????????????????????????? | | ??????# ########T##########################????? | | ??????# #????? | | ??????# %* #????? | | ??????# = #????? | | ??????##################### ############ < #????? | | ??????????????????????????# #??????????# #????? | | ??????????????????????????#= #??????????#####????? | | ????????????###############g #???????????????????? | | ????????????# gg #???????????????????? | | ????????????# ^ @ % #???????????????????? | | ????????????## ##### gg#####???????????????????? | | ????????????#""??????# #???????????????????????? | | ?????????????????????#####???????????????????????? | | ?????????????????????????????????????????????????? | | ?????????????????????????????????????????????????? | | ?????????????????????????????????????????????????? | | ?????????????????????????????????????????????????? | | ?????????????????????????????????????????????????? | | ?????????????????????????????????????????????????? | | ?????????????????????????????????????????????????? | | ?????????????????????????????????????????????????? | | ?????????????????????????????????????????????????? | | ?????????????????????????????????????????????????? | | ?????????????????????????????????????????????????? | | ?????????????????????????????????????????????????? | | ?????????????????????????????????????????????????? | | ?????????????????????????????????????????????????? | | ?????????????????????????????????????????????????? | | ?????????????????????????????????????????????????? | | ?????????????????????????????????????????????????? | | ?????????????????????????????????????????????????? | | ?????????????????????????????????????????????????? | | ?????????????????????????????????????????????????? | | ?????????????????????????????????????????????????? | +----------------------------------------------------+ Best States ------------- Heat Dissipation 45 Energy Generation 16 Energy Capacity 290 Matter Stores 300 Matter Capacity 300 Sight Range 20 Terrain Scan Density 10 Weapon Cycling 15 Evasion (%) 72 Recoil Reduction 4 Offensive Hacking 10 Defensive Hacking 10 Item Schematics ----------------- None Robot Schematics ------------------ None Fabricated ------------ Nothing Repaired ---------- EM Pulse Gun | 2% | -9/Materials Studied --------- Flight Unit | -8/Materials | Hacked Alien Tech Used ----------------- None Achievements -------------- None Challenges ------------ None Game ------ Seed CoordinationFlakLaser Manual? 0 Play Time 00:34:33 Cumulative 19.7 hours Start 2026.03.11 @ 12:30:54 End 2026.03.11 @ 13:04:57 Sessions 1 Manual Loads 0 Difficulty Rogue Special Mode None Game No. 38 Rogue 38 Adventurer 0 Explorer 0 Win Type - Total 0 Types 0/0/0/0/0/0/0/0/0/0 Lore% 22 Gallery% 19 Achievement% 16 Wizard Run 0 Options --------- Layout 1 ASCII 0 Keyboard 0 Movement Numpad Keybinds 0 Fullscreen 1 Font 24/Smallcaps Map View 50x35 Zoom Use 0% Tactical HUD 1 Map Filters NONE Filters NONE Steam 1 RUN: 8c9ed6a4-8021-42c8-ae50-d15ade2cd01e